lending/lending_fUSD_20250913
["ID","MTS","AMOUNT","RATE_DAILY","PERIOD"]
[385361389,1757790820912,-1042.18,0.0003178,2]
[385361390,1757790820925,-714.23,0.0003178,2]
[385361391,1757790820937,-894.39,0.0003178,2]
[385361392,1757790820950,-647.42,0.0003178,2]
[385361393,1757790820963,-513.3,0.0003178,2]
[385361394,1757790820978,-924.41,0.0003178,2]
[385361395,1757790820992,-857.85,0.0003178,2]
[385361396,1757790821007,-2338.03,0.0003178,2]
[385361397,1757790821022,-1469.88,0.0003178,2]
[385361398,1757790821035,-841.74,0.0003178,2]
[385361399,1757790821048,-722.3,0.0003178,2]
[385361400,1757790821061,-814.0,0.0003178,2]
[385361401,1757790821074,-767.19,0.0003178,2]
[385361402,1757790821088,-415.27,0.0003178,2]
[385361403,1757790821102,-844.21,0.0003178,2]
[385361404,1757790821117,-1229.51,0.0003178,2]
[385361405,1757790821131,-1485.88,0.0003178,2]
[385361406,1757790821145,-449.16,0.0003178,2]
[385361407,1757790821159,-2265.68,0.0003178,2]
[385361408,1757790821172,-865.66,0.0003178,2]
[385361409,1757790821186,-863.57,0.0003178,2]
[385361410,1757790821198,-572.0,0.0003178,2]
[385361411,1757790821212,-2112.49,0.0003178,2]
[385361412,1757790821227,-510.21,0.0003178,2]
[385361413,1757790821240,-1107.28,0.0003178,2]
[385361414,1757790821254,-183.2463391,0.0003178,2]
[385361415,1757790821268,-1170.47,0.0003178,2]
[385361416,1757790821284,-841.3,0.0003178,2]
[385361417,1757790821298,-856.96,0.0003178,2]
[385361418,1757790821311,-1028.51,0.0003178,2]
[385361419,1757790821325,-906.61,0.0003178,2]
[385361420,1757790821339,-1458.58,0.0003178,2]
[385361421,1757790821353,-1006.96,0.0003178,2]
[385361422,1757790821366,-701.85,0.0003178,2]
[385361423,1757790821380,-4256.1,0.0003178,2]
[385361424,1757790821395,-728.15,0.0003178,2]
[385361425,1757790821410,-925.96,0.0003178,2]
[385361426,1757790821425,-400.0,0.0003178,2]
[385361427,1757790821440,-400.0,0.0003178,2]
[385361428,1757790821454,-445.69,0.0003178,2]
[385361429,1757790821468,-1198.57,0.0003178,2]
[385361430,1757790821482,-2857.69,0.0003178,2]
[385361431,1757790821496,-1974.67,0.0003178,2]
[385361432,1757790821513,-847.13,0.0003178,2]
[385361433,1757790821529,-2990.98,0.0003178,2]
[385361434,1757790821544,-400.0,0.0003178,2]
[385361435,1757790821558,-834.58,0.0003178,2]
[385361436,1757790821573,-2302.98,0.0003178,2]
[385361437,1757790821588,-2111.33,0.0003178,2]
[385361438,1757790821602,-1747.56,0.0003178,2]
[385361439,1757790821618,-466.82,0.0003178,2]
[385361440,1757790821632,-400.0,0.0003178,2]
[385361441,1757790821647,-2233.25,0.0003178,2]
[385361442,1757790821661,-400.0,0.0003178,2]
[385361443,1757790821675,-1255.2,0.0003178,2]
[385361444,1757790821691,-1963.87,0.0003178,2]
[385361445,1757790821706,-694.91,0.0003178,2]
[385361446,1757790821720,-266.06977236,0.0003178,2]
[385361447,1757790821736,-1143.85,0.0003178,2]
[385361448,1757790821751,-807.66,0.0003178,2]
[385361449,1757790821765,-400.0,0.0003178,2]
[385361450,1757790821779,-927.88,0.0003178,2]
[385361451,1757790821794,-2263.39,0.0003178,2]
[385361452,1757790821808,-952.59,0.0003178,2]
[385361453,1757790821822,-931.48,0.0003178,2]
[385361454,1757790821837,-400.0,0.0003178,2]
[385361455,1757790821852,-669.04,0.0003178,2]
[385361456,1757790821868,-1333.33,0.0003178,2]
[385361457,1757790821881,-944.31,0.0003178,2]
[385361458,1757790821896,-711.99,0.0003178,2]
[385361459,1757790821910,-1798.63,0.0003178,2]
[385361460,1757790821924,-1030.24,0.0003178,2]
[385361461,1757790821939,-977.53,0.0003178,2]
[385361462,1757790821954,-568.52,0.0003178,2]
[385361463,1757790821968,-1079.08,0.0003178,2]
[385361464,1757790821983,-400.0,0.0003178,2]
[385361465,1757790821997,-923.82,0.0003178,2]
[385361466,1757790822011,-1374.51,0.0003178,2]
[385361467,1757790822027,-539.76,0.0003178,2]
[385361468,1757790822042,-532.15,0.0003178,2]
[385361469,1757790822056,-1021.66,0.0003178,2]
[385361470,1757790822070,-400.0,0.0003178,2]
[385361471,1757790822084,-796.82,0.0003178,2]
[385361472,1757790822098,-707.41,0.0003178,2]
[385361473,1757790822113,-786.29,0.0003178,2]
[385361474,1757790822126,-1683.27,0.0003178,2]
[385361475,1757790822140,-923.85,0.0003178,2]
[385361476,1757790822154,-585.84,0.0003178,2]
[385361477,1757790822168,-1254.84,0.0003178,2]
[385361478,1757790822182,-1026.54,0.0003178,2]
[385361479,1757790822202,-492.79,0.0003178,2]
[385361480,1757790822216,-2328.06,0.0003178,2]
[385361481,1757790822231,-1854.12,0.0003178,2]
[385361482,1757790822245,-1159.49,0.0003178,2]
[385361483,1757790822259,-1000.0,0.0003178,2]
[385361484,1757790822744,-3059.22,0.0003178,2]
[385361485,1757790822767,-1262.94,0.0003178,2]
[385361486,1757790822776,-618.58,0.0003178,2]
[385361487,1757790822786,-400.0,0.0003178,2]
[385361488,1757790822796,-400.0,0.0003178,2]
[385361489,1757790822805,-666.27,0.0003178,2]
[385361490,1757790822814,-2778.98,0.0003178,2]
[385361491,1757790822824,-1602.35,0.0003178,2]
[385361492,1757790822833,-400.0,0.0003178,2]
[385361493,1757790822842,-438.09,0.0003178,2]
[385361494,1757790822851,-344.99,0.0003178,2]
[385361495,1757790822860,-523.76,0.0003178,2]
[385361496,1757790822870,-634.16,0.0003178,2]
[385361497,1757790822879,-887.05,0.0003178,2]
[385361498,1757790822888,-942.86,0.0003178,2]
[385361499,1757790822898,-734.11,0.0003178,2]
[385361500,1757790822907,-1697.7,0.0003178,2]
[385361501,1757790822916,-1448.36,0.0003178,2]
[385361502,1757790822925,-1288.99,0.0003178,2]
[385361503,1757790822933,-488.5,0.0003178,2]
[385361504,1757790822943,-655.13,0.0003178,2]
[385361505,1757790822952,-2431.97,0.0003178,2]
[385361506,1757790822962,-693.6,0.0003178,2]
[385361507,1757790822971,-985.78,0.0003178,2]
[385361508,1757790822981,-914.74,0.0003178,2]
[385361509,1757790822990,-1199.53,0.0003178,2]
[385361510,1757790823000,-485.82587711,0.0003178,2]
[385361511,1757790823011,-492.5,0.0003178,2]
[385361512,1757790823020,-3119.56,0.0003178,2]
[385361513,1757790823030,-400.0,0.0003178,2]
[385361514,1757790823040,-683.66,0.0003178,2]
[385361515,1757790823050,-869.51,0.0003178,2]
[385361516,1757790823059,-1155.29,0.0003178,2]
[385361517,1757790823068,-1010.79,0.0003178,2]
[385361518,1757790823077,-655.9,0.0003178,2]
[385361519,1757790823086,-450.64,0.0003178,2]
[385361520,1757790823096,-1130.65,0.0003178,2]
[385361521,1757790823106,-1727.97,0.0003178,2]
[385361522,1757790823115,-971.87,0.0003178,2]
[385361523,1757790823125,-1049.74,0.0003178,2]
[385361524,1757790823135,-536.28,0.0003178,2]
[385361525,1757790823145,-920.05,0.0003178,2]
[385361526,1757790823155,-807.81,0.0003178,2]
[385361527,1757790823164,-1540.01,0.0003178,2]
[385361528,1757790823174,-767.61,0.0003178,2]
[385361529,1757790823183,-843.61,0.0003178,2]
[385361530,1757790823192,-798.34,0.0003178,2]
[385361531,1757790823202,-1507.18,0.0003178,2]
[385361532,1757790823211,-1074.98,0.0003178,2]
[385361533,1757790823221,-736.94,0.0003178,2]
[385361534,1757790823231,-721.19,0.0003178,2]
[385361535,1757790823240,-8779.55,0.0003178,2]
[385361536,1757790823250,-1380.97,0.0003178,2]
[385361537,1757790823259,-400.0,0.0003178,2]
[385361538,1757790823268,-1003.9,0.0003178,2]
[385361539,1757790823277,-594.63,0.0003178,2]
[385361540,1757790823286,-506.79,0.0003178,2]
[385361541,1757790823296,-729.26,0.0003178,2]
[385361542,1757790823304,-649.71,0.0003178,2]
[385361543,1757790823313,-813.26,0.0003178,2]
[385361544,1757790823323,-752.66,0.0003178,2]
[385361545,1757790823332,-666.01,0.0003178,2]
[385361546,1757790823341,-2040.81710923,0.00031781,5]
[385361547,1757790823350,-1500.0,0.000318,120]
[385361548,1757790823359,-500.0,0.00031882,7]
[385361549,1757790823368,-1300.0,0.00031882,7]
[385361550,1757790823377,-3000.0,0.00031882,7]
[385361551,1757790823386,-309.0,0.00031883,2]
[385361552,1757790823395,-158.0,0.00031891,120]
[385361553,1757790823404,-232.41,0.00031917,120]
[385361554,1757790823413,-700.0,0.0003197,2]
[385361555,1757790823422,-700.0,0.0003197,2]
[385361556,1757790823431,-717.55317211,0.0003197,2]
[385361557,1757790823440,-600.0,0.0003197,2]
[385361558,1757790823449,-700.0,0.0003197,2]
[385361559,1757790823459,-400.0,0.0003197,2]
[385361560,1757790823468,-177.4035,0.00032,2]
[385361561,1757790823477,-1500.0,0.00032,2]
[385361562,1757790823487,-1500.0,0.00032,2]
[385361563,1757790823498,-1500.0,0.00032,2]
[385361564,1757790823510,-1500.0,0.00032,2]
[385361565,1757790823519,-1500.0,0.00032,2]
[385361566,1757790823528,-1500.0,0.00032,2]
[385361567,1757790823537,-1500.0,0.00032,2]
[385361568,1757790823548,-1500.0,0.00032,2]
[385361569,1757790823558,-1500.0,0.00032,2]
[385361570,1757790823567,-1500.0,0.00032,2]
[385361571,1757790823579,-893.82,0.00032,2]
[385361572,1757790823590,-2000.0,0.00032,2]
[385361573,1757790823599,-690.2544571,0.00032,7]
[385361574,1757790823608,-202.0,0.00032,2]
[385361575,1757790823617,-202.0,0.00032,2]
[385361576,1757790823626,-202.0,0.00032,2]
[385361577,1757790823635,-202.0,0.00032,2]
[385361578,1757790823644,-202.0,0.00032,2]
[385361579,1757790823654,-202.0,0.00032,2]
[385361580,1757790823663,-202.0,0.00032,2]
[385361581,1757790823672,-202.0,0.00032,2]
[385361582,1757790823681,-1133.26,0.00032,2]
[385361583,1757790823691,-500.0,0.00032,12]
[385361584,1757790823700,-500.0,0.00032,12]
[385361585,1757790823710,-500.0,0.00032,12]
[385361586,1757790823719,-500.0,0.00032,12]
[385361587,1757790823728,-500.0,0.00032,12]
[385361588,1757790823738,-500.0,0.00032,12]
[385361589,1757790823749,-500.0,0.00032,12]
[385361590,1757790823758,-500.0,0.00032,12]
[385361591,1757790823767,-214.0,0.00032,2]
[385361592,1757790823777,-214.0,0.00032,2]
[385361593,1757790823786,-214.0,0.00032,2]
[385361594,1757790823795,-214.0,0.00032,2]
[385361595,1757790823806,-214.0,0.00032,2]
[385361596,1757790823816,-214.0,0.00032,2]
[385361597,1757790823826,-1509.43558,0.00032,8]
[385361598,1757790823835,-210.0,0.0003204,30]
[385361599,1757790823844,-160.0,0.00032043,120]
[385361600,1757790823854,-403.48,0.00032054,2]
[385361601,1757790823864,-400.0,0.00032054,2]
[385361602,1757790823873,-400.0,0.00032054,2]
[385361603,1757790823883,-699.06,0.00032054,2]
[385361604,1757790823892,-888.74,0.00032054,2]
[385361605,1757790823902,-1067.33,0.00032054,2]
[385361606,1757790823911,-494.9,0.00032054,2]
[385361607,1757790823921,-400.0,0.00032054,2]
[385361608,1757790823930,-1011.1,0.00032054,2]
[385361609,1757790823939,-411.04,0.00032054,2]
[385361610,1757790823948,-400.0,0.00032054,2]
[385361611,1757790823957,-436.55,0.00032054,2]
[385361612,1757790823967,-415.46,0.00032054,2]
[385361613,1757790823976,-1222.47,0.00032054,2]
[385361614,1757790823985,-622.37,0.00032054,2]
[385361615,1757790823994,-751.49,0.00032054,2]
[385361616,1757790824003,-512.06,0.00032054,2]
[385361617,1757790824012,-516.89,0.00032054,2]
[385361618,1757790824022,-572.28,0.00032054,2]
[385361619,1757790824031,-400.0,0.00032054,2]
[385361620,1757790824040,-400.0,0.00032054,2]
[385361621,1757790824049,-400.0,0.00032054,2]
[385361622,1757790824058,-405.34,0.00032054,2]
[385361623,1757790824067,-892.3,0.00032054,2]
[385361624,1757790824077,-2090.35,0.00032054,2]
[385361625,1757790824086,-445.77,0.00032054,2]
[385361626,1757790824095,-849.51,0.00032054,2]
[385361627,1757790824105,-764.33,0.00032054,2]
[385361628,1757790824113,-812.38,0.00032054,2]
[385361629,1757790824122,-579.38,0.00032054,2]
[385361630,1757790824131,-278.13408835,0.00032054,2]
[385361631,1757790824140,-400.0,0.00032054,2]
[385361632,1757790824150,-400.0,0.00032054,2]
[385361633,1757790824159,-1141.14,0.00032054,2]
[385361634,1757790824168,-650.0,0.00032054,120]
[385361635,1757790824177,-593.32,0.00032054,2]
[385361636,1757790824186,-400.0,0.00032054,2]
[385361637,1757790824195,-762.02,0.00032054,2]
[385361638,1757790824204,-400.0,0.00032054,2]
[385361639,1757790824214,-633.2,0.00032054,2]
[385361640,1757790824223,-548.72,0.00032054,2]
[385361641,1757790824233,-400.0,0.00032054,2]
[385361642,1757790824242,-400.0,0.00032054,2]
[385361643,1757790824251,-411.96,0.00032054,2]
[385361644,1757790824261,-653.34,0.00032054,2]
[385361645,1757790824270,-891.73,0.00032054,2]
[385361646,1757790824280,-400.0,0.00032054,2]
[385361647,1757790824290,-598.23,0.00032054,2]
[385361648,1757790824299,-1354.32,0.00032054,2]
[385361649,1757790824308,-518.98,0.00032054,2]
[385361650,1757790824318,-925.24,0.00032054,2]
[385361651,1757790824328,-722.44,0.00032054,2]
[385361652,1757790824338,-400.0,0.00032054,2]
[385361653,1757790824349,-506.66,0.00032054,2]
[385361654,1757790824359,-1909.11,0.00032054,2]
[385361655,1757790824368,-886.75,0.00032054,2]
[385361656,1757790824378,-171.11456192,0.00032054,2]
[385361657,1757790824388,-1138.1,0.00032054,2]
[385361658,1757790824398,-400.0,0.00032054,2]
[385361659,1757790824407,-400.0,0.00032054,2]
[385361660,1757790824417,-576.48,0.00032054,2]
[385361661,1757790824427,-400.0,0.00032054,2]
[385361662,1757790824436,-400.0,0.00032054,2]
[385361663,1757790824445,-712.7,0.00032054,2]
[385361664,1757790824455,-400.0,0.00032054,2]
[385361665,1757790824465,-2782.51,0.00032054,2]
[385361666,1757790824474,-400.0,0.00032054,2]
[385361667,1757790824484,-400.0,0.00032054,2]
[385361668,1757790824493,-749.03,0.00032054,2]
[385361669,1757790824506,-476.93,0.00032054,2]
[385361670,1757790824515,-652.17,0.00032054,2]
[385361671,1757790824524,-1095.32,0.00032054,2]
[385361672,1757790824534,-778.01,0.00032054,2]
[385361673,1757790824543,-450.34,0.00032054,2]
[385361674,1757790824552,-623.72,0.00032054,2]
[385361675,1757790824562,-232.41,0.00032054,120]
[385361676,1757790824571,-522.52,0.00032054,2]
[385361677,1757790824581,-1025.68,0.00032054,2]
[385361678,1757790824590,-1547.47,0.00032054,2]
[385361679,1757790824600,-452.08,0.00032054,2]
[385361680,1757790824609,-418.98688088,0.00032054,2]
[385361681,1757790824618,-233.50818263,0.00032054,2]
[385361682,1757790824628,-954.04,0.00032054,2]
[385361683,1757790824639,-972.47,0.00032054,2]
[385361684,1757790824648,-440.6,0.00032054,2]
[385361685,1757790824658,-400.0,0.00032054,2]
[385361686,1757790824667,-1107.3,0.00032054,2]
[385361687,1757790824676,-1360.89,0.00032054,2]
[385361688,1757790824686,-438.49,0.00032054,2]
[385361689,1757790824696,-511.89,0.00032054,2]
[385361690,1757790824706,-875.02,0.00032054,2]
[385361691,1757790824715,-441.06,0.00032054,2]
[385361692,1757790824725,-540.34,0.00032054,2]
[385361693,1757790824736,-432.57,0.00032054,2]
[385361694,1757790824745,-605.1,0.00032054,2]
[385361695,1757790824755,-979.03,0.00032054,2]
[385361696,1757790824764,-639.66,0.00032054,2]
[385361697,1757790824775,-743.92,0.00032054,2]
[385361698,1757790824784,-549.77,0.00032054,2]
[385361699,1757790824794,-757.51,0.00032054,2]
[385361700,1757790824803,-1369.33,0.00032054,2]
[385361701,1757790824813,-976.5,0.00032054,2]
[385361702,1757790824822,-714.21,0.00032054,2]
[385361703,1757790824832,-1200.51,0.00032054,2]
[385361704,1757790824841,-429.54,0.00032054,2]
[385361705,1757790824851,-931.9,0.00032054,2]
[385361706,1757790824861,-867.52,0.00032054,2]
[385361707,1757790824871,-767.06,0.00032054,2]
[385361708,1757790824881,-522.36,0.00032054,2]
[385361709,1757790824890,-464.29,0.00032054,2]
[385361710,1757790824900,-1050.24,0.00032054,2]
[385361711,1757790824909,-712.0,0.00032054,2]
[385361712,1757790824919,-770.1,0.00032054,2]
[385361713,1757790824928,-1340.61,0.00032054,2]
[385361714,1757790824938,-744.56,0.00032054,2]
[385361715,1757790824947,-503.78,0.00032054,2]
[385361716,1757790824956,-933.78,0.00032054,2]
[385361717,1757790824965,-917.05,0.00032054,2]
[385361718,1757790824975,-601.03,0.00032054,2]
[385361719,1757790824984,-1166.06,0.00032054,2]
[385361720,1757790824994,-408.67,0.00032054,2]
[385361721,1757790825003,-744.95,0.00032054,2]
[385361722,1757790825013,-962.63,0.00032054,2]
[385361723,1757790825022,-944.97,0.00032054,2]
[385361724,1757790825031,-697.23,0.00032054,2]
[385361725,1757790825040,-1128.5,0.00032054,2]
[385361726,1757790825050,-1287.15,0.00032054,2]
[385361727,1757790825060,-1140.31,0.00032054,2]
[385361728,1757790825069,-883.84,0.00032054,2]
[385361729,1757790825078,-1121.16,0.00032054,2]
[385361730,1757790825087,-400.0,0.00032054,2]
[385361731,1757790825096,-400.0,0.00032054,2]
[385361732,1757790825106,-513.88,0.00032054,2]
[385361733,1757790825115,-766.79,0.00032054,2]
[385361734,1757790825124,-836.28,0.00032054,2]
[385361735,1757790825134,-400.0,0.00032054,2]
[385361736,1757790825143,-1062.97,0.00032054,2]
[385361737,1757790825152,-701.46,0.00032054,2]
[385361738,1757790825161,-1010.43,0.00032054,2]
[385361739,1757790825171,-618.9,0.00032054,2]
[385361740,1757790825180,-740.73,0.00032054,2]
[385361741,1757790825189,-400.0,0.00032054,2]
[385361742,1757790825198,-617.0,0.00032054,2]
[385361743,1757790825207,-955.87,0.00032054,2]
[385361744,1757790825217,-400.0,0.00032054,2]
[385361745,1757790825226,-1394.15,0.00032054,2]
[385361746,1757790825235,-645.46,0.00032054,2]
[385361747,1757790825244,-475.16,0.00032054,2]
[385361748,1757790825254,-1201.25,0.00032054,2]
[385361749,1757790825264,-1420.48,0.00032054,2]
[385361750,1757790825273,-436.7,0.00032054,2]
[385361751,1757790825283,-886.97,0.00032054,2]
[385361752,1757790825293,-695.44,0.00032054,2]
[385361753,1757790825302,-869.21,0.00032054,2]
[385361754,1757790825311,-1459.76,0.00032054,2]
[385361755,1757790825321,-563.58,0.00032054,2]
[385361756,1757790825331,-565.26,0.00032054,2]
[385361757,1757790825340,-1134.89,0.00032054,2]
[385361758,1757790825349,-404.56,0.00032054,2]
[385361759,1757790825359,-734.93,0.00032054,2]
[385361760,1757790825369,-1149.23,0.00032054,2]
[385361761,1757790825378,-1190.66,0.00032054,2]
[385361762,1757790825386,-656.39,0.00032054,2]
[385361763,1757790825395,-1130.2,0.00032054,2]
[385361764,1757790825405,-914.37,0.00032054,2]
[385361765,1757790825415,-869.45,0.00032054,2]
[385361766,1757790825424,-400.0,0.00032054,2]
[385361767,1757790825434,-459.11,0.00032054,2]
[385361768,1757790825443,-1022.06,0.00032054,2]
[385361769,1757790825453,-400.0,0.00032054,2]
[385361770,1757790825463,-516.71,0.00032054,2]
[385361771,1757790825473,-400.0,0.00032054,2]
[385361772,1757790825483,-1379.73,0.00032054,2]
[385361773,1757790825493,-899.94,0.00032054,2]
[385361774,1757790825505,-866.46,0.00032054,2]
[385361775,1757790825515,-400.0,0.00032054,2]
[385361776,1757790825524,-556.4,0.00032054,2]
[385361777,1757790825534,-400.0,0.00032054,2]
[385361778,1757790825545,-1195.99,0.00032054,2]
[385361779,1757790825555,-518.54,0.00032054,2]
[385361780,1757790825564,-1740.08,0.00032054,2]
[385361781,1757790825575,-1006.76,0.00032054,2]
[385361782,1757790825584,-400.0,0.00032054,2]
[385361783,1757790825594,-668.89,0.00032054,2]
[385361784,1757790825603,-529.54,0.00032054,2]
[385361785,1757790825613,-927.44,0.00032054,2]
[385361786,1757790825623,-662.77,0.00032054,2]
[385361787,1757790825633,-586.65,0.00032054,2]
[385361788,1757790825642,-744.19,0.00032054,2]
[385361789,1757790825651,-899.11,0.00032054,2]
[385361790,1757790825661,-770.78,0.00032054,2]
[385361791,1757790825672,-644.35,0.00032054,2]
[385361792,1757790825681,-714.15,0.00032054,2]
[385361793,1757790825690,-453.23,0.00032054,2]
[385361794,1757790825700,-1002.56,0.00032054,2]
[385361795,1757790825709,-809.12,0.00032054,2]
[385361796,1757790825719,-400.0,0.00032054,2]
[385361797,1757790825728,-864.64,0.00032054,2]
[385361798,1757790825994,-836.53,0.00032054,2]
[385361799,1757790826004,-400.0,0.00032054,2]
[385361800,1757790826014,-400.0,0.00032054,2]
[385361801,1757790826024,-400.0,0.00032054,2]
[385361802,1757790826033,-800.39,0.00032054,2]
[385361803,1757790826042,-759.84,0.00032054,2]
[385361804,1757790826052,-438.06,0.00032054,2]
[385361805,1757790826061,-1067.29,0.00032054,2]
[385361806,1757790826070,-483.11,0.00032054,2]
[385361807,1757790826080,-890.46,0.00032054,2]
[385361808,1757790826089,-621.88,0.00032054,2]
[385361809,1757790826099,-1123.98,0.00032054,2]
[385361810,1757790826107,-400.0,0.00032054,2]
[385361811,1757790826117,-440.32,0.00032054,2]
[385361812,1757790826126,-2863.78,0.00032054,2]
[385361813,1757790826135,-757.94,0.00032054,2]
[385361814,1757790826145,-400.0,0.00032054,2]
[385361815,1757790826155,-557.63,0.00032054,2]
[385361816,1757790826164,-861.65,0.00032054,2]
[385361817,1757790826173,-803.76,0.00032054,2]
[385361818,1757790826182,-835.94,0.00032054,2]
[385361819,1757790826191,-434.25,0.00032054,2]
[385361820,1757790826200,-578.44,0.00032054,2]
[385361821,1757790826209,-550.07,0.00032054,2]
[385361822,1757790826218,-800.87,0.00032054,2]
[385361823,1757790826227,-541.06,0.00032054,2]
[385361824,1757790826237,-400.0,0.00032054,2]
[385361825,1757790826246,-400.0,0.00032054,2]
[385361826,1757790826255,-652.82,0.00032054,2]
[385361827,1757790826264,-400.0,0.00032054,2]
[385361828,1757790826274,-423.72,0.00032054,2]
[385361829,1757790826288,-1300.44,0.00032054,2]
[385361830,1757790826297,-439.16,0.00032054,2]
[385361831,1757790826307,-826.3,0.00032054,2]
[385361832,1757790826316,-787.45,0.00032054,2]
[385361833,1757790826327,-164.07888915,0.00032054,2]
[385361834,1757790826338,-535.57,0.00032054,2]
[385361835,1757790826348,-800.47,0.00032054,2]
[385361836,1757790826357,-1253.6,0.00032054,2]
[385361837,1757790826366,-544.69,0.00032054,2]
[385361838,1757790826376,-400.0,0.00032054,2]
[385361839,1757790826386,-944.98,0.00032054,2]
[385361840,1757790826395,-556.97,0.00032054,2]
[385361841,1757790826405,-842.01,0.00032054,2]
[385361842,1757790826414,-652.8,0.00032054,2]
[385361843,1757790826424,-489.49,0.00032054,2]
[385361844,1757790826433,-1082.49,0.00032054,2]
[385361845,1757790826443,-400.0,0.00032054,2]
[385361846,1757790826452,-439.06,0.00032054,2]
[385361847,1757790826461,-589.14,0.00032054,2]
[385361848,1757790826471,-890.6,0.00032054,2]
[385361849,1757790826480,-583.29,0.00032054,2]
[385361850,1757790826491,-708.58,0.00032054,2]
[385361851,1757790826507,-531.52,0.00032054,2]
[385361852,1757790826517,-1252.15,0.00032054,2]
[385361853,1757790826527,-947.61,0.00032054,2]
[385361854,1757790826537,-400.0,0.00032054,2]
[385361855,1757790826547,-1050.56,0.00032054,2]
[385361856,1757790826556,-872.42,0.00032054,2]
[385361857,1757790826566,-791.71,0.00032054,2]
[385361858,1757790826576,-407.96,0.00032054,2]
[385361859,1757790826586,-400.0,0.00032054,2]
[385361860,1757790826596,-983.81,0.00032054,2]
[385361861,1757790826605,-868.8,0.00032054,2]
[385361862,1757790826615,-846.53,0.00032054,2]
[385361863,1757790826624,-2593.64,0.00032054,2]
[385361864,1757790826635,-730.89,0.00032054,2]
[385361865,1757790826644,-785.21,0.00032054,2]
[385361866,1757790826654,-400.0,0.00032054,2]
[385361867,1757790826663,-447.29,0.00032054,2]
[385361868,1757790826673,-964.92,0.00032054,2]
[385361869,1757790826682,-400.0,0.00032054,2]
[385361870,1757790826692,-759.47,0.00032054,2]
[385361871,1757790826701,-428.63,0.00032054,2]
[385361872,1757790826711,-400.0,0.00032054,2]
[385361873,1757790826721,-620.45,0.00032054,2]
[385361874,1757790826731,-537.7,0.00032054,2]
[385361875,1757790826740,-862.8,0.00032054,2]
[385361876,1757790826749,-505.66,0.00032054,2]
[385361877,1757790826759,-400.0,0.00032054,2]
[385361878,1757790826768,-427.09,0.00032054,2]
[385361879,1757790826778,-400.0,0.00032054,2]
[385361880,1757790826787,-1263.32,0.00032054,2]
[385361881,1757790826797,-400.0,0.00032054,2]
[385361882,1757790826806,-174.67084398,0.00032054,2]
[385361883,1757790826815,-786.15,0.00032054,2]
[385361884,1757790826826,-400.0,0.00032054,2]
[385361885,1757790826838,-4665.54,0.00032054,2]
[385361886,1757790826851,-400.0,0.00032054,2]
[385361887,1757790826862,-769.42,0.00032054,2]
[385361888,1757790826879,-958.92,0.00032054,2]